[Event "Early-Titled-Tuesday-Blitz-February-13-2024"]
[Site "Chess.com"]
[Date "2024.02.13"]
[Round "4"]
[White "evgchess5"]
[Black "RandomNoob04"]
[Result "1-0"]
[WhiteElo "2959"]
[BlackElo "2615"]
[TimeControl "180+1"]
[EndTime "8:41:39 PST"]
[Termination "evgchess5 won by resignation"]

1. e4 {[%clk 0:02:58.6]} 1... e5 {[%clk 0:03:00.5]} 2. Nf3 {[%clk 0:02:57.2]}
2... Nf6 {[%clk 0:03:01.2]} 3. d4 {[%clk 0:02:56.3]} 3... Nxe4 {[%clk
0:03:01.3]} 4. Bd3 {[%clk 0:02:56.3]} 4... d5 {[%clk 0:03:01]} 5. Nxe5 {[%clk
0:02:56]} 5... Nd7 {[%clk 0:03:01.2]} 6. Nxd7 {[%clk 0:02:56]} 6... Bxd7 {[%clk
0:03:02.1]} 7. O-O {[%clk 0:02:55.4]} 7... Bd6 {[%clk 0:03:02.7]} 8. c4 {[%clk
0:02:55]} 8... c6 {[%clk 0:03:02.3]} 9. cxd5 {[%clk 0:02:54.6]} 9... cxd5 {[%clk
0:03:03.2]} 10. Nc3 {[%clk 0:02:54.3]} 10... Nxc3 {[%clk 0:03:02]} 11. bxc3
{[%clk 0:02:54.7]} 11... O-O {[%clk 0:03:02.7]} 12. Bd2 {[%clk 0:02:54.1]} 12...
Qh4 {[%clk 0:02:55.9]} 13. g3 {[%clk 0:02:51.6]} 13... Qh3 {[%clk 0:02:56.5]}
14. Qf3 {[%clk 0:02:50.2]} 14... Rfe8 {[%clk 0:02:49.3]} 15. Rfe1 {[%clk
0:02:49.4]} 15... h5 {[%clk 0:02:06.4]} 16. Bc2 {[%clk 0:02:05]} 16... Rad8
{[%clk 0:01:01.9]} 17. Bb3 {[%clk 0:01:58]} 17... Bc6 {[%clk 0:00:40.3]} 18.
Rxe8+ {[%clk 0:01:56.5]} 18... Rxe8 {[%clk 0:00:41.2]} 19. Bxd5 {[%clk 0:01:53]}
19... Bxd5 {[%clk 0:00:39]} 20. Qxd5 {[%clk 0:01:52.8]} 20... Re2 {[%clk
0:00:38.6]} 21. Be3 {[%clk 0:01:13.3]} 21... Ba3 {[%clk 0:00:18.2]} 22. Qb5
{[%clk 0:00:59.2]} 22... Bb2 {[%clk 0:00:16.4]} 23. Rb1 {[%clk 0:00:50.7]} 23...
Bxc3 {[%clk 0:00:16.7]} 24. Qxe2 {[%clk 0:00:49.7]} 1-0

[Event "Early-Titled-Tuesday-Blitz-February-13-2024"]
[Site "Chess.com"]
[Date "2024.02.13"]
[Round "4"]
[White "themind1hunter"]
[Black "nj123456"]
[Result "1-0"]
[WhiteElo "2511"]
[BlackElo "2270"]
[TimeControl "180+1"]
[EndTime "8:41:45 PST"]
[Termination "themind1hunter won by resignation"]

1. Nf3 {[%clk 0:02:51.1]} 1... Nf6 {[%clk 0:02:59.5]} 2. g3 {[%clk 0:02:49.3]}
2... e6 {[%clk 0:02:59.2]} 3. Bg2 {[%clk 0:02:50.2]} 3... d5 {[%clk 0:02:59.3]}
4. O-O {[%clk 0:02:50.4]} 4... Be7 {[%clk 0:02:59.8]} 5. d4 {[%clk 0:02:47.9]}
5... O-O {[%clk 0:02:59.8]} 6. c4 {[%clk 0:02:48.6]} 6... c6 {[%clk 0:02:56.7]}
7. b3 {[%clk 0:02:45.7]} 7... Nbd7 {[%clk 0:02:56.4]} 8. Bb2 {[%clk 0:02:46.3]}
8... b6 {[%clk 0:02:56.4]} 9. Nc3 {[%clk 0:02:47]} 9... Bb7 {[%clk 0:02:56.2]}
10. Qc2 {[%clk 0:02:47.7]} 10... Rc8 {[%clk 0:02:55.8]} 11. e4 {[%clk
0:02:48.3]} 11... dxe4 {[%clk 0:02:55.6]} 12. Nxe4 {[%clk 0:02:49.2]} 12... Nxe4
{[%clk 0:02:53.6]} 13. Qxe4 {[%clk 0:02:50.1]} 13... Nf6 {[%clk 0:02:53.8]} 14.
Qe2 {[%clk 0:02:49.9]} 14... c5 {[%clk 0:02:49.7]} 15. Rfd1 {[%clk 0:02:47.4]}
15... Qc7 {[%clk 0:02:32.5]} 16. Ne5 {[%clk 0:02:35.3]} 16... Bxg2 {[%clk
0:02:31.5]} 17. Kxg2 {[%clk 0:02:36.2]} 17... Rfd8 {[%clk 0:02:24.3]} 18. Rd3
{[%clk 0:02:05.7]} 18... cxd4 {[%clk 0:02:09.7]} 19. Bxd4 {[%clk 0:01:58.2]}
19... Bc5 {[%clk 0:01:42.4]} 20. Rad1 {[%clk 0:01:55.2]} 20... Bxd4 {[%clk
0:01:38.5]} 21. Rxd4 {[%clk 0:01:56.1]} 21... Rxd4 {[%clk 0:01:38.7]} 22. Rxd4
{[%clk 0:01:55.8]} 22... Qb7+ {[%clk 0:01:39.3]} 23. Qf3 {[%clk 0:01:55]} 23...
Qxf3+ {[%clk 0:01:38.6]} 24. Kxf3 {[%clk 0:01:55.9]} 24... Kf8 {[%clk
0:01:34.3]} 25. g4 {[%clk 0:01:54.6]} 25... h6 {[%clk 0:01:25.4]} 26. h4 {[%clk
0:01:53.8]} 26... Rc5 {[%clk 0:01:16.2]} 27. Nd7+ {[%clk 0:01:46.6]} 27... Nxd7
{[%clk 0:01:13.9]} 28. Rxd7 {[%clk 0:01:47.5]} 28... a6 {[%clk 0:01:01.2]} 29.
Ke4 {[%clk 0:01:36.5]} 29... b5 {[%clk 0:00:54.3]} 30. Kd4 {[%clk 0:01:35.8]}
30... Rc6 {[%clk 0:00:49.9]} 31. c5 {[%clk 0:01:35.8]} 31... Ke8 {[%clk
0:00:43.9]} 32. Ra7 {[%clk 0:01:30.5]} 32... Kf8 {[%clk 0:00:39.6]} 33. b4
{[%clk 0:01:30]} 33... g6 {[%clk 0:00:38.4]} 34. Rb7 {[%clk 0:01:26.7]} 34...
Rc8 {[%clk 0:00:35.3]} 35. Ke5 {[%clk 0:01:22.7]} 35... Kg7 {[%clk 0:00:31.8]}
36. Rb6 {[%clk 0:01:18.3]} 36... Ra8 {[%clk 0:00:28.1]} 37. c6 {[%clk 0:01:18]}
37... a5 {[%clk 0:00:20.4]} 38. c7 {[%clk 0:01:17.8]} 38... Rc8 {[%clk
0:00:18.5]} 39. Kd6 {[%clk 0:01:17.4]} 39... axb4 {[%clk 0:00:17.4]} 40. Rb8
{[%clk 0:01:15.5]} 1-0

[Event "Early-Titled-Tuesday-Blitz-February-13-2024"]
[Site "Chess.com"]
[Date "2024.02.13"]
[Round "4"]
[White "Akewjon"]
[Black "NelsonLinda"]
[Result "1-0"]
[WhiteElo "2798"]
[BlackElo "2567"]
[TimeControl "180+1"]
[EndTime "8:41:48 PST"]
[Termination "Akewjon won by resignation"]

1. Nf3 {[%clk 0:02:56.4]} 1... Nf6 {[%clk 0:02:52.6]} 2. c4 {[%clk 0:02:56]}
2... g6 {[%clk 0:02:50.8]} 3. b3 {[%clk 0:02:54.3]} 3... Bg7 {[%clk 0:02:50.9]}
4. Bb2 {[%clk 0:02:55]} 4... b6 {[%clk 0:02:47.4]} 5. g3 {[%clk 0:02:54.8]} 5...
Bb7 {[%clk 0:02:47]} 6. Bg2 {[%clk 0:02:55.5]} 6... O-O {[%clk 0:02:46.7]} 7.
O-O {[%clk 0:02:54.7]} 7... c5 {[%clk 0:02:29.8]} 8. Nc3 {[%clk 0:02:49.2]} 8...
d5 {[%clk 0:01:34]} 9. e3 {[%clk 0:02:47.9]} 9... dxc4 {[%clk 0:01:15.3]} 10.
bxc4 {[%clk 0:02:47.6]} 10... Nc6 {[%clk 0:01:15.8]} 11. Qe2 {[%clk 0:02:47.2]}
11... Rc8 {[%clk 0:01:13.5]} 12. d3 {[%clk 0:02:43.4]} 12... a6 {[%clk
0:01:13.3]} 13. Rfd1 {[%clk 0:02:42.3]} 13... Na7 {[%clk 0:01:13.1]} 14. Rab1
{[%clk 0:02:41.8]} 14... b5 {[%clk 0:01:08]} 15. a3 {[%clk 0:01:58.5]} 15... Qc7
{[%clk 0:01:03.8]} 16. Ba1 {[%clk 0:01:55.8]} 16... Bc6 {[%clk 0:01:00.3]} 17.
Nd2 {[%clk 0:01:44.1]} 17... Rfd8 {[%clk 0:00:39.6]} 18. Bxc6 {[%clk 0:01:32.2]}
18... Qxc6 {[%clk 0:00:40.5]} 19. Nb3 {[%clk 0:01:26.6]} 19... h5 {[%clk
0:00:31.5]} 20. cxb5 {[%clk 0:01:20.6]} 20... axb5 {[%clk 0:00:30.7]} 21. d4
{[%clk 0:01:19.9]} 21... c4 {[%clk 0:00:24.2]} 22. Nc5 {[%clk 0:01:20]} 22... h4
{[%clk 0:00:19.3]} 23. f3 {[%clk 0:01:18.7]} 23... hxg3 {[%clk 0:00:17.1]} 24.
hxg3 {[%clk 0:01:19.6]} 24... Nh5 {[%clk 0:00:10.4]} 25. Kg2 {[%clk 0:01:19.5]}
25... e5 {[%clk 0:00:09.3]} 26. N3e4 {[%clk 0:01:11.1]} 26... exd4 {[%clk
0:00:08.6]} 27. exd4 {[%clk 0:01:10.8]} 27... Re8 {[%clk 0:00:07.6]} 28. d5
{[%clk 0:01:09.9]} 28... Qb6 {[%clk 0:00:07.2]} 29. Bxg7 {[%clk 0:01:09.9]}
29... Nxg7 {[%clk 0:00:06.6]} 30. Qb2 {[%clk 0:01:09.1]} 30... Kf8 {[%clk
0:00:05.2]} 31. Nd7+ {[%clk 0:01:07.2]} 1-0

[Event "Early-Titled-Tuesday-Blitz-February-13-2024"]
[Site "Chess.com"]
[Date "2024.02.13"]
[Round "4"]
[White "Hanging_pointer"]
[Black "Yaacovn"]
[Result "1/2-1/2"]
[WhiteElo "2621"]
[BlackElo "2926"]
[TimeControl "180+1"]
[EndTime "8:41:51 PST"]
[Termination "Game drawn by repetition"]

1. d4 {[%clk 0:02:52.4]} 1... Nf6 {[%clk 0:02:59.2]} 2. c4 {[%clk 0:02:51.6]}
2... e5 {[%clk 0:02:59.3]} 3. dxe5 {[%clk 0:02:47.9]} 3... Ne4 {[%clk
0:02:59.5]} 4. Nf3 {[%clk 0:02:45]} 4... Nc6 {[%clk 0:02:59.3]} 5. Nbd2 {[%clk
0:02:35.8]} 5... Bb4 {[%clk 0:02:58.9]} 6. a3 {[%clk 0:02:34.7]} 6... Nxd2
{[%clk 0:02:59.2]} 7. Bxd2 {[%clk 0:02:34.6]} 7... Bxd2+ {[%clk 0:02:59.4]} 8.
Qxd2 {[%clk 0:02:35.5]} 8... O-O {[%clk 0:02:59.7]} 9. e3 {[%clk 0:02:32.4]}
9... Qe7 {[%clk 0:02:59.9]} 10. Be2 {[%clk 0:02:26.4]} 10... Nxe5 {[%clk
0:02:59.7]} 11. Nxe5 {[%clk 0:02:27.1]} 11... Qxe5 {[%clk 0:03:00.6]} 12. O-O
{[%clk 0:02:26.4]} 12... d6 {[%clk 0:03:00.3]} 13. Bf3 {[%clk 0:02:20.4]} 13...
Bd7 {[%clk 0:03:00.1]} 14. b4 {[%clk 0:02:14.3]} 14... Bc6 {[%clk 0:02:58.9]}
15. Bd5 {[%clk 0:02:11.5]} 15... Rab8 {[%clk 0:02:52.4]} 16. Rac1 {[%clk
0:02:09.2]} 16... Rfd8 {[%clk 0:02:49.3]} 17. Rfd1 {[%clk 0:02:06.5]} 17... Ba4
{[%clk 0:02:48.7]} 18. Re1 {[%clk 0:02:05.9]} 18... Be8 {[%clk 0:02:37]} 19. Rc3
{[%clk 0:01:56.1]} 19... h6 {[%clk 0:02:32.8]} 20. Rd3 {[%clk 0:01:53.4]} 20...
Bd7 {[%clk 0:02:30.7]} 21. Rd4 {[%clk 0:01:50.2]} 21... Be6 {[%clk 0:02:28.2]}
22. Rd1 {[%clk 0:01:48.1]} 22... Qf6 {[%clk 0:02:25]} 23. Bf3 {[%clk 0:01:44.3]}
23... Re8 {[%clk 0:02:14.4]} 24. h3 {[%clk 0:01:37.9]} 24... Qg5 {[%clk
0:02:10.1]} 25. Kh2 {[%clk 0:01:31.2]} 25... a5 {[%clk 0:02:05.1]} 26. b5 {[%clk
0:01:28.8]} 26... b6 {[%clk 0:02:03.8]} 27. Bc6 {[%clk 0:01:25.9]} 27... Re7
{[%clk 0:02:00.5]} 28. f4 {[%clk 0:01:26.4]} 28... Qc5 {[%clk 0:01:56.3]} 29.
Qd3 {[%clk 0:01:21.4]} 29... f6 {[%clk 0:01:33.7]} 30. g4 {[%clk 0:01:14.9]}
30... Bf7 {[%clk 0:01:30.1]} 31. Kg3 {[%clk 0:01:12.7]} 31... g5 {[%clk
0:01:22.9]} 32. Re1 {[%clk 0:01:10.3]} 32... Kg7 {[%clk 0:01:20.4]} 33. h4
{[%clk 0:01:07.1]} 33... gxf4+ {[%clk 0:01:17.7]} 34. Rxf4 {[%clk 0:01:03.7]}
34... Re5 {[%clk 0:01:13.8]} 35. Rd4 {[%clk 0:01:00.7]} 35... h5 {[%clk
0:01:07.8]} 36. Rf1 {[%clk 0:00:56]} 36... hxg4 {[%clk 0:01:03.5]} 37. Rxg4+
{[%clk 0:00:56.9]} 37... Kf8 {[%clk 0:00:59.3]} 38. Kf2 {[%clk 0:00:55.7]} 38...
Ke7 {[%clk 0:00:57.9]} 39. Rg7 {[%clk 0:00:53.7]} 39... Rg8 {[%clk 0:00:52.6]}
40. Rfg1 {[%clk 0:00:52.9]} 40... Rxg7 {[%clk 0:00:49.9]} 41. Rxg7 {[%clk
0:00:53.8]} 41... Kf8 {[%clk 0:00:50.5]} 42. Rxf7+ {[%clk 0:00:49.1]} 42... Kxf7
{[%clk 0:00:50.8]} 43. Qh7+ {[%clk 0:00:47.7]} 43... Kf8 {[%clk 0:00:50.9]} 44.
Qh8+ {[%clk 0:00:47.5]} 44... Kf7 {[%clk 0:00:51.4]} 45. Qh7+ {[%clk 0:00:48.1]}
45... Kf8 {[%clk 0:00:50.3]} 46. Qh8+ {[%clk 0:00:48.6]} 46... Kf7 {[%clk
0:00:47.6]} 47. Qh7+ {[%clk 0:00:48.9]} 1/2-1/2

[Event "Early-Titled-Tuesday-Blitz-February-13-2024"]
[Site "Chess.com"]
[Date "2024.02.13"]
[Round "4"]
[White "ozates"]
[Black "VeraVujovic"]
[Result "1-0"]
[WhiteElo "2583"]
[BlackElo "2237"]
[TimeControl "180+1"]
[EndTime "8:42:00 PST"]
[Termination "ozates won on time"]

1. e4 {[%clk 0:02:59.3]} 1... c6 {[%clk 0:02:59.6]} 2. c4 {[%clk 0:02:57.4]}
2... d5 {[%clk 0:02:59]} 3. exd5 {[%clk 0:02:58.3]} 3... cxd5 {[%clk 0:02:59.1]}
4. d4 {[%clk 0:02:59.2]} 4... Nc6 {[%clk 0:02:57]} 5. Nc3 {[%clk 0:02:59.5]}
5... Nf6 {[%clk 0:02:54.6]} 6. Bg5 {[%clk 0:02:58.6]} 6... e6 {[%clk 0:02:46.7]}
7. c5 {[%clk 0:02:56.3]} 7... h6 {[%clk 0:02:36.7]} 8. Bh4 {[%clk 0:02:54.3]}
8... Be7 {[%clk 0:02:29.8]} 9. Bb5 {[%clk 0:02:52]} 9... O-O {[%clk 0:02:22.8]}
10. Nf3 {[%clk 0:02:51.6]} 10... Ne4 {[%clk 0:02:13.4]} 11. Bxe7 {[%clk
0:02:51.2]} 11... Nxe7 {[%clk 0:01:49.5]} 12. O-O {[%clk 0:02:47.6]} 12... f5
{[%clk 0:01:31.5]} 13. Ne5 {[%clk 0:02:43.8]} 13... Nxc3 {[%clk 0:01:09.4]} 14.
bxc3 {[%clk 0:02:44.7]} 14... Qa5 {[%clk 0:01:09.7]} 15. Qb3 {[%clk 0:02:34.4]}
15... a6 {[%clk 0:01:06.3]} 16. Bd7 {[%clk 0:02:33.3]} 16... Bxd7 {[%clk
0:01:01.7]} 17. Nxd7 {[%clk 0:02:34.2]} 17... Rfd8 {[%clk 0:01:01.8]} 18. Nb6
{[%clk 0:02:34.2]} 18... Rab8 {[%clk 0:01:00.6]} 19. Rfe1 {[%clk 0:02:34.7]}
19... Kf7 {[%clk 0:00:54.2]} 20. Re3 {[%clk 0:02:34.2]} 20... Nc6 {[%clk
0:00:44.3]} 21. Rae1 {[%clk 0:02:29.8]} 21... Re8 {[%clk 0:00:44.3]} 22. Nd7
{[%clk 0:02:29.8]} 22... Rbc8 {[%clk 0:00:36.1]} 23. g4 {[%clk 0:02:19.6]} 23...
f4 {[%clk 0:00:21]} 24. Rf3 {[%clk 0:02:12.3]} 24... g5 {[%clk 0:00:21]} 25. h4
{[%clk 0:02:07.6]} 25... Rc7 {[%clk 0:00:19.5]} 26. Ne5+ {[%clk 0:02:06.1]}
26... Nxe5 {[%clk 0:00:18.9]} 27. Rxe5 {[%clk 0:02:07]} 27... Rg8 {[%clk
0:00:18.6]} 28. hxg5 {[%clk 0:01:55.3]} 28... hxg5 {[%clk 0:00:19.5]} 29. Rh3
{[%clk 0:01:55.3]} 29... Rg7 {[%clk 0:00:15.1]} 30. Rh6 {[%clk 0:01:51.4]} 30...
Re7 {[%clk 0:00:14.9]} 31. Rexe6 {[%clk 0:01:46.8]} 31... Rxe6 {[%clk
0:00:10.8]} 32. Qxd5 {[%clk 0:01:46.2]} 32... Rg6 {[%clk 0:00:03.2]} 33. Rxg6
{[%clk 0:01:45]} 33... Kxg6 {[%clk 0:00:04.1]} 34. Qxe6+ {[%clk 0:01:44.8]}
34... Kg7 {[%clk 0:00:04.8]} 35. Qe5+ {[%clk 0:01:38]} 35... Kg6 {[%clk
0:00:04.9]} 36. Qf5+ {[%clk 0:01:38.4]} 36... Kh6 {[%clk 0:00:05.2]} 37. Qf6+
{[%clk 0:01:38.7]} 37... Kh7 {[%clk 0:00:05.8]} 38. Qf7+ {[%clk 0:01:36.9]}
38... Kh6 {[%clk 0:00:05.7]} 39. Qh5+ {[%clk 0:01:37.2]} 39... Kg7 {[%clk
0:00:06.1]} 40. Qxg5+ {[%clk 0:01:38.1]} 40... Kf7 {[%clk 0:00:06.4]} 41. Qxf4+
{[%clk 0:01:37.5]} 41... Ke6 {[%clk 0:00:07]} 42. Qe5+ {[%clk 0:01:37.7]} 42...
Kf7 {[%clk 0:00:07.5]} 43. Qd5+ {[%clk 0:01:36.2]} 43... Kg6 {[%clk 0:00:07.2]}
44. Qxb7 {[%clk 0:01:29.6]} 1-0

[Event "Early-Titled-Tuesday-Blitz-February-13-2024"]
[Site "Chess.com"]
[Date "2024.02.13"]
[Round "4"]
[White "K_A_S_T_O_R"]
[Black "Andrej2004"]
[Result "1-0"]
[WhiteElo "2866"]
[BlackElo "2599"]
[TimeControl "180+1"]
[EndTime "8:42:02 PST"]
[Termination "K_A_S_T_O_R won by resignation"]

1. e4 {[%clk 0:03:00.9]} 1... e5 {[%clk 0:02:59.8]} 2. Nf3 {[%clk 0:03:00.6]}
2... Nc6 {[%clk 0:03:00.4]} 3. Bb5 {[%clk 0:02:59.1]} 3... a6 {[%clk 0:03:00.6]}
4. Ba4 {[%clk 0:02:59.1]} 4... Nge7 {[%clk 0:03:00.9]} 5. c3 {[%clk 0:02:58.4]}
5... g6 {[%clk 0:03:01.2]} 6. d4 {[%clk 0:02:58.2]} 6... exd4 {[%clk 0:03:02.1]}
7. cxd4 {[%clk 0:02:58.8]} 7... b5 {[%clk 0:03:02.4]} 8. Bb3 {[%clk 0:02:57.7]}
8... Bg7 {[%clk 0:03:02.3]} 9. d5 {[%clk 0:02:58.1]} 9... Na5 {[%clk 0:03:02]}
10. Bd2 {[%clk 0:02:57.6]} 10... Nxb3 {[%clk 0:03:00]} 11. Qxb3 {[%clk
0:02:51.9]} 11... O-O {[%clk 0:03:00.1]} 12. Ba5 {[%clk 0:02:51.9]} 12... f5
{[%clk 0:02:45.9]} 13. d6+ {[%clk 0:02:49.7]} 13... Kh8 {[%clk 0:02:45.7]} 14.
dxe7 {[%clk 0:02:43.8]} 14... Qxe7 {[%clk 0:02:45.8]} 15. e5 {[%clk 0:02:44.1]}
15... d6 {[%clk 0:02:44.7]} 16. O-O {[%clk 0:02:36.7]} 16... dxe5 {[%clk
0:02:44.9]} 17. Rc1 {[%clk 0:02:27.5]} 17... c5 {[%clk 0:02:43.6]} 18. Qd5
{[%clk 0:02:17.9]} 18... Bb7 {[%clk 0:02:18.9]} 19. Qxc5 {[%clk 0:02:15.8]}
19... Qf6 {[%clk 0:02:07.2]} 20. Qb6 {[%clk 0:02:09.6]} 20... e4 {[%clk
0:01:59]} 21. Qxb7 {[%clk 0:02:03.2]} 21... Qxb2 {[%clk 0:01:40.4]} 22. Nbd2
{[%clk 0:01:58]} 22... exf3 {[%clk 0:01:21]} 23. Qxf3 {[%clk 0:01:48.4]} 23...
Rac8 {[%clk 0:01:14.4]} 24. Rd1 {[%clk 0:01:41.2]} 24... Qxa1 {[%clk 0:01:01.4]}
25. Rxa1 {[%clk 0:01:40.4]} 25... Bxa1 {[%clk 0:01:02.3]} 26. g3 {[%clk
0:01:39.8]} 26... Bg7 {[%clk 0:01:00.9]} 27. Nb3 {[%clk 0:01:37.1]} 27... Rf6
{[%clk 0:00:58.5]} 28. Qb7 {[%clk 0:01:35.3]} 28... Rfc6 {[%clk 0:00:57.7]} 29.
Bd2 {[%clk 0:01:28.9]} 29... h6 {[%clk 0:00:57]} 30. Be3 {[%clk 0:01:25.7]}
30... R8c7 {[%clk 0:00:54.7]} 31. Qb8+ {[%clk 0:01:24.7]} 31... Rc8 {[%clk
0:00:54.3]} 32. Qf4 {[%clk 0:01:24.4]} 32... Kh7 {[%clk 0:00:44.2]} 33. h4
{[%clk 0:01:23.4]} 33... Rc4 {[%clk 0:00:44]} 34. Qf3 {[%clk 0:01:23]} 34... h5
{[%clk 0:00:37.7]} 35. Qd5 {[%clk 0:01:21.8]} 35... Rb8 {[%clk 0:00:23]} 36. Bd4
{[%clk 0:01:19.2]} 36... Rc7 {[%clk 0:00:20.7]} 37. Bxg7 {[%clk 0:01:18]} 37...
Rxg7 {[%clk 0:00:21.6]} 38. Nc5 {[%clk 0:01:18.4]} 38... Rb6 {[%clk 0:00:19.8]}
39. Ne6 {[%clk 0:01:18]} 39... Re7 {[%clk 0:00:19.5]} 40. Ng5+ {[%clk
0:01:17.7]} 40... Kg7 {[%clk 0:00:20.1]} 41. Qd4+ {[%clk 0:01:18]} 41... Rf6
{[%clk 0:00:19.9]} 42. Kf1 {[%clk 0:01:16.2]} 42... Rc7 {[%clk 0:00:15.5]} 43.
Nh7 {[%clk 0:01:15.4]} 43... Kxh7 {[%clk 0:00:14.3]} 44. Qxf6 {[%clk 0:01:15.8]}
1-0

[Event "Early-Titled-Tuesday-Blitz-February-13-2024"]
[Site "Chess.com"]
[Date "2024.02.13"]
[Round "4"]
[White "blitzking1729"]
[Black "kecalk"]
[Result "1-0"]
[WhiteElo "2718"]
[BlackElo "2511"]
[TimeControl "180+1"]
[EndTime "8:42:06 PST"]
[Termination "blitzking1729 won by resignation"]

1. e4 {[%clk 0:03:00.9]} 1... e5 {[%clk 0:02:59.7]} 2. Nf3 {[%clk 0:03:01]} 2...
Nc6 {[%clk 0:03:00.1]} 3. c3 {[%clk 0:03:01.2]} 3... Nf6 {[%clk 0:02:56.9]} 4.
d3 {[%clk 0:03:01.5]} 4... d5 {[%clk 0:02:53.8]} 5. Nbd2 {[%clk 0:03:01]} 5...
Bc5 {[%clk 0:02:39.2]} 6. Be2 {[%clk 0:03:01]} 6... O-O {[%clk 0:02:36.6]} 7. b4
{[%clk 0:02:59.8]} 7... Bb6 {[%clk 0:02:33.5]} 8. O-O {[%clk 0:02:57.3]} 8...
dxe4 {[%clk 0:02:21.4]} 9. dxe4 {[%clk 0:02:55.5]} 9... a6 {[%clk 0:02:21.5]}
10. Qc2 {[%clk 0:02:54.4]} 10... h6 {[%clk 0:02:09.4]} 11. Nc4 {[%clk
0:02:50.1]} 11... Qe7 {[%clk 0:02:06.1]} 12. Nxb6 {[%clk 0:02:48.5]} 12... cxb6
{[%clk 0:02:07]} 13. a4 {[%clk 0:02:48.6]} 13... Bg4 {[%clk 0:02:00.7]} 14. Be3
{[%clk 0:02:45.7]} 14... Qc7 {[%clk 0:02:00.5]} 15. Rac1 {[%clk 0:02:37.2]}
15... Rac8 {[%clk 0:01:58.8]} 16. h3 {[%clk 0:02:31.3]} 16... Bh5 {[%clk
0:01:50.7]} 17. Qb1 {[%clk 0:02:29.7]} 17... Bg6 {[%clk 0:01:48]} 18. Nd2 {[%clk
0:02:29]} 18... Nd7 {[%clk 0:01:36.5]} 19. f3 {[%clk 0:02:26.7]} 19... Nd8
{[%clk 0:01:36]} 20. Rfd1 {[%clk 0:02:24.8]} 20... Ne6 {[%clk 0:01:35.9]} 21.
Nc4 {[%clk 0:02:23.4]} 21... Rcd8 {[%clk 0:01:21.3]} 22. Bf1 {[%clk 0:02:16.5]}
22... f5 {[%clk 0:01:21.2]} 23. Rd6 {[%clk 0:02:10.6]} 23... Rf6 {[%clk
0:01:13.2]} 24. Rcd1 {[%clk 0:01:42.5]} 24... fxe4 {[%clk 0:01:11]} 25. fxe4
{[%clk 0:01:42.5]} 25... b5 {[%clk 0:01:06.3]} 26. axb5 {[%clk 0:01:40.8]} 26...
axb5 {[%clk 0:01:07.2]} 27. Nb6 {[%clk 0:01:20.8]} 27... Nxb6 {[%clk 0:01:02.3]}
28. Bxb6 {[%clk 0:01:20.4]} 28... Qxd6 {[%clk 0:01:02.2]} 29. Bxd8 {[%clk
0:01:20.1]} 29... Qf8 {[%clk 0:00:51.6]} 30. Bxf6 {[%clk 0:01:13.9]} 30... Qxf6
{[%clk 0:00:52.5]} 31. Bxb5 {[%clk 0:01:13.9]} 31... Ng5 {[%clk 0:00:48.9]} 32.
Bd3 {[%clk 0:01:00.3]} 32... Qf4 {[%clk 0:00:44.8]} 33. Qa2+ {[%clk 0:01:00.2]}
33... Kh7 {[%clk 0:00:42]} 34. Qf2 {[%clk 0:01:00.6]} 34... Nxe4 {[%clk
0:00:24]} 35. Qxf4 {[%clk 0:00:55.7]} 35... exf4 {[%clk 0:00:24.9]} 36. Bxe4
{[%clk 0:00:56]} 36... Bxe4 {[%clk 0:00:24.7]} 37. Rd4 {[%clk 0:00:56.7]} 1-0

[Event "Early-Titled-Tuesday-Blitz-February-13-2024"]
[Site "Chess.com"]
[Date "2024.02.13"]
[Round "4"]
[White "Tolyanius"]
[Black "Goryachkina"]
[Result "0-1"]
[WhiteElo "2496"]
[BlackElo "2703"]
[TimeControl "180+1"]
[EndTime "8:42:07 PST"]
[Termination "Goryachkina won on time"]

1. e4 {[%clk 0:03:00.9]} 1... c5 {[%clk 0:02:59.8]} 2. Nf3 {[%clk 0:03:00.8]}
2... e6 {[%clk 0:02:59.9]} 3. b4 {[%clk 0:03:00.5]} 3... b6 {[%clk 0:02:58.1]}
4. bxc5 {[%clk 0:02:59.9]} 4... bxc5 {[%clk 0:02:58.2]} 5. Nc3 {[%clk
0:02:57.6]} 5... Nc6 {[%clk 0:02:54.4]} 6. Rb1 {[%clk 0:02:56.4]} 6... Nf6
{[%clk 0:02:44.4]} 7. Bb5 {[%clk 0:02:56.1]} 7... Nd4 {[%clk 0:02:37.9]} 8. e5
{[%clk 0:02:39.1]} 8... Nxb5 {[%clk 0:02:31]} 9. Nxb5 {[%clk 0:02:33.8]} 9...
Nd5 {[%clk 0:02:28.9]} 10. O-O {[%clk 0:02:17.2]} 10... Be7 {[%clk 0:02:18.9]}
11. c4 {[%clk 0:02:01]} 11... Nb6 {[%clk 0:02:06.5]} 12. Qc2 {[%clk 0:02:01.2]}
12... O-O {[%clk 0:02:03.6]} 13. Nd6 {[%clk 0:01:46.8]} 13... Bxd6 {[%clk
0:02:00.8]} 14. exd6 {[%clk 0:01:47.1]} 14... Bb7 {[%clk 0:01:59.9]} 15. Rb3
{[%clk 0:01:23.5]} 15... f6 {[%clk 0:01:34.7]} 16. Ba3 {[%clk 0:01:17.5]} 16...
Qc8 {[%clk 0:01:31.4]} 17. Qd3 {[%clk 0:00:26]} 17... Bxf3 {[%clk 0:01:25.8]}
18. Qxf3 {[%clk 0:00:24.5]} 18... Nxc4 {[%clk 0:01:25.5]} 19. Rc1 {[%clk
0:00:19.5]} 19... Nxd2 {[%clk 0:01:23.4]} 20. Qg3 {[%clk 0:00:08]} 20... Nxb3
{[%clk 0:01:23.1]} 21. axb3 {[%clk 0:00:08.9]} 21... Qb7 {[%clk 0:01:01.5]} 22.
h4 {[%clk 0:00:06]} 22... Rab8 {[%clk 0:00:59.9]} 23. Rc3 {[%clk 0:00:06.6]}
23... Qd5 {[%clk 0:00:55.3]} 24. Kh2 {[%clk 0:00:05.9]} 24... Qe5 {[%clk
0:00:49.8]} 25. Qxe5 {[%clk 0:00:04]} 25... fxe5 {[%clk 0:00:50]} 26. Bxc5
{[%clk 0:00:04.9]} 26... a5 {[%clk 0:00:46.1]} 27. f3 {[%clk 0:00:05.3]} 27...
Rfc8 {[%clk 0:00:45.5]} 28. Bd4 {[%clk 0:00:02.5]} 28... exd4 {[%clk 0:00:45]}
0-1